bitfinex/quotes_BTCUSD_20241110
["timestamp","ask_amount","ask_price","bid_price","bid_amount"]
[1731217002181,0.0562,79463.0,79457.0,0.02513]
[1731217002587,0.0562,79463.0,79459.0,0.02513]
[1731217003169,0.0562,79463.0,79461.0,0.02513]
[1731217003587,0.0562,79463.0,79452.0,0.20307858]
[1731217003588,0.0562,79463.0,79462.0,0.03132382]
[1731217003795,0.36014239,79463.0,79462.0,0.03132382]
[1731217004009,0.0562,79463.0,79462.0,0.03132382]
[1731217004222,0.0562,79463.0,79462.0,0.02513]
[1731217004460,0.0562,79463.0,79462.0,0.0313271]
[1731217004667,0.0562,79463.0,79454.0,0.02513]
[1731217004874,0.0562,79463.0,79462.0,0.03132843]
[1731217005084,0.0562,79463.0,79462.0,0.04294498]
[1731217005297,0.0562,79463.0,79462.0,0.03132818]
[1731217006587,0.001678,79468.0,79462.0,0.03132818]
[1731217006797,0.001678,79468.0,79464.0,0.02513]
[1731217007029,0.001678,79468.0,79463.0,0.01782007]
[1731217007030,0.001678,79468.0,79466.0,0.02513]
[1731217007457,0.001678,79468.0,79467.0,0.06337513]
[1731217007668,0.058738,79482.0,79478.0,0.08115999]
[1731217007880,0.058738,79482.0,79479.0,0.05720319]
[1731217008110,0.058738,79482.0,79481.0,0.02513]
[1731217008568,0.058738,79482.0,79481.0,0.05719243]
[1731217009005,0.058738,79482.0,79481.0,0.06583273]
[1731217009212,0.058738,79482.0,79481.0,0.07197035]
[1731217009432,0.30465539,79484.0,79481.0,0.07197035]
[1731217009656,0.30465539,79484.0,79483.0,0.02513]
[1731217009864,0.30465539,79484.0,79483.0,0.06583273]
[1731217010300,0.30465539,79484.0,79483.0,0.07195815]
[1731217010512,0.30465539,79484.0,79483.0,0.06583273]
[1731217012485,0.30465539,79484.0,79483.0,0.04801935]
[1731217012708,0.30465539,79484.0,79483.0,0.0475783]
[1731217013144,0.30465539,79484.0,79483.0,0.06485559]
[1731217013360,0.30465539,79484.0,79483.0,0.0475783]
[1731217014002,0.30465539,79484.0,79474.0,0.0245783]
[1731217014211,0.30465539,79484.0,79477.0,0.1229232]
[1731217014450,0.30465539,79484.0,79479.0,0.0229232]
[1731217014665,0.28165539,79484.0,79479.0,0.04019904]
[1731217014916,0.28165539,79484.0,79481.0,0.0229232]
[1731217015359,0.28165539,79484.0,79482.0,0.00838923]
[1731217015567,0.28165539,79484.0,79483.0,0.0229232]
[1731217017784,0.0201,79500.0,79499.0,0.0279232]
[1731217018007,0.18882888,79513.0,79512.0,0.0279232]
[1731217018231,0.18882888,79513.0,79512.0,0.05071552]
[1731217018452,0.000713,79514.0,79512.0,0.05071552]
[1731217018453,0.000713,79514.0,79513.0,0.0379232]
[1731217018913,0.000713,79514.0,79513.0,0.04658319]
[1731217019078,0.000713,79514.0,79513.0,0.03658319]
[1731217019284,0.000713,79514.0,79513.0,0.2725254]
[1731217019615,0.000713,79514.0,79513.0,0.29977794]
[1731217020442,0.02,79535.0,79522.0,0.0329232]
[1731217020656,0.18882888,79533.0,79522.0,0.25386541]
[1731217020874,0.02,79535.0,79522.0,0.27249262]
[1731217021056,0.18882888,79533.0,79532.0,0.0279232]
[1731217021306,0.02,79535.0,79533.0,0.1329232]
[1731217021486,0.02,79535.0,79533.0,0.30425537]
[1731217021634,0.02,79535.0,79533.0,0.29925537]
[1731217021836,0.02,79535.0,79533.0,0.28697953]
[1731217022366,4.46560577,79534.0,79533.0,0.42533736]
[1731217022647,4.46560577,79534.0,79533.0,0.40241416]
[1731217022856,1.46580577,79534.0,79533.0,0.40041416]
[1731217023221,1.46580577,79534.0,79533.0,0.41166051]
[1731217023815,1.46580577,79534.0,79533.0,0.41366051]
[1731217024014,1.46580577,79534.0,79533.0,0.42735032]
[1731217024211,1.46580577,79534.0,79533.0,0.42535032]
[1731217024417,1.46580577,79534.0,79533.0,0.3972362]
[1731217025510,1.46580577,79534.0,79533.0,0.39720615]
[1731217025719,1.46580577,79534.0,79533.0,0.31710615]
[1731217025930,1.46580577,79534.0,79533.0,0.32564269]
[1731217026977,1.46580577,79534.0,79533.0,0.21564269]
[1731217027175,1.46580577,79534.0,79533.0,0.16438486]
[1731217027384,1.46580577,79534.0,79533.0,0.13947875]
[1731217027626,1.46580577,79534.0,79533.0,0.16895236]
[1731217027890,1.46580577,79534.0,79533.0,0.17895236]
[1731217028293,1.46580577,79534.0,79533.0,0.27895236]
[1731217028513,1.46580577,79534.0,79533.0,0.2876685]
[1731217028717,1.46580577,79534.0,79533.0,0.27185465]
[1731217029138,1.46580577,79534.0,79533.0,0.26185465]
[1731217029338,1.46580577,79534.0,79533.0,0.27185465]
[1731217029560,1.46580577,79534.0,79533.0,0.16185465]
[1731217029758,1.44280577,79534.0,79533.0,0.15685465]
[1731217029958,1.44280577,79534.0,79533.0,0.14813851]
[1731217030240,1.44280577,79534.0,79533.0,0.0221963]
[1731217030429,1.44280577,79534.0,79533.0,0.0238743]
[1731217031045,1.44280577,79534.0,79533.0,0.02373406]
[1731217031246,1.44280577,79534.0,79533.0,0.0152516]
[1731217031714,1.44280577,79534.0,79533.0,0.001678]
[1731217032551,1.41766577,79534.0,79533.0,0.001678]
[1731217032755,1.41766577,79534.0,79533.0,0.25775021]
[1731217032971,1.41766577,79534.0,79533.0,0.28452523]
[1731217033176,1.41766577,79534.0,79533.0,0.14886684]
[1731217033398,1.41766577,79534.0,79533.0,0.27980905]
[1731217033605,1.41766577,79534.0,79533.0,0.25775021]
[1731217033822,1.41766577,79534.0,79533.0,0.2832045]
[1731217034025,1.41766577,79534.0,79533.0,0.29677956]
[1731217034229,1.41766577,79534.0,79533.0,0.28748121]
[1731217034439,1.41766577,79534.0,79533.0,0.33549305]
[1731217034573,1.41766577,79534.0,79533.0,0.326501]
[1731217034781,1.41766577,79534.0,79533.0,0.33397016]
[1731217034994,1.3894147,79534.0,79533.0,0.34397016]
[1731217036293,1.3894147,79534.0,79533.0,0.33897016]
[1731217036546,1.3894147,79534.0,79533.0,0.39441971]
[1731217036776,1.3894147,79534.0,79533.0,0.34591467]
[1731217037416,1.3894147,79534.0,79533.0,0.30194466]
[1731217037653,1.3894147,79534.0,79533.0,0.32707466]
[1731217037879,1.3894147,79534.0,79533.0,0.29305487]
[1731217038112,1.3894147,79534.0,79533.0,0.32711492]
[1731217038311,1.3894147,79534.0,79533.0,0.36582641]
[1731217039062,1.3894147,79534.0,79533.0,0.37141856]
[1731217039416,1.3894147,79534.0,79533.0,0.36582641]
[1731217039532,1.3894147,79534.0,79533.0,0.36082641]
[1731217039735,1.3894147,79534.0,79533.0,0.36582641]
[1731217040147,1.3894147,79534.0,79533.0,0.33211492]
[1731217042671,1.3894147,79534.0,79533.0,0.32711492]
[1731217043165,1.3894147,79534.0,79533.0,0.33211492]
[1731217043306,1.3894147,79534.0,79533.0,0.33379292]
[1731217043706,1.3894147,79534.0,79533.0,0.32879292]
[1731217044123,1.3902537,79534.0,79533.0,0.33967221]
[1731217044719,1.3672537,79534.0,79533.0,0.33967221]
[1731217044956,1.3672537,79534.0,79469.0,0.12205512]
[1731217044957,0.1,79510.0,79469.0,0.12205512]
[1731217045116,0.001,79532.0,79466.0,0.001678]
[1731217045117,0.01,79467.0,79466.0,0.001678]
[1731217045324,0.005,79467.0,79466.0,0.026808]
[1731217045794,0.005,79476.0,79466.0,0.03228336]
[1731217045994,0.002,79469.0,79466.0,0.03228336]
[1731217046202,0.0783,79476.0,79466.0,0.001678]
[1731217046203,0.007,79467.0,79466.0,0.001678]
[1731217046432,0.012,79467.0,79466.0,0.001678]
[1731217046626,0.01,79462.0,79437.0,0.02513]
[1731217046900,0.14094221,79462.0,79457.0,0.02513]
[1731217047127,0.0983,79458.0,79457.0,0.02513]
[1731217047336,0.0983,79458.0,79402.0,0.005]
[1731217047337,0.02,79451.0,79412.0,0.02513]
[1731217047467,0.02,79451.0,79396.0,0.30394239]
[1731217047468,0.002,79419.0,79396.0,0.30894239]
[1731217047678,0.005,79424.0,79418.0,0.75439909]
[1731217047882,0.005,79423.0,79404.0,0.01]
[1731217048066,0.002,79419.0,79414.0,0.75439909]
[1731217048266,0.002,79419.0,79406.0,0.75439909]
[1731217048471,0.005,79421.0,79406.0,0.80175383]
[1731217048676,0.005,79421.0,79407.0,0.1]
[1731217048899,0.002,79419.0,79407.0,0.1]
[1731217049127,0.75939909,79418.0,79397.0,0.12594221]
[1731217049335,0.002,79411.0,79398.0,0.76699331]
[1731217049537,0.005,79412.0,79398.0,0.76699331]
[1731217049794,0.007,79411.0,79399.0,0.07669933]
[1731217049955,0.005,79410.0,79387.0,0.001424]
[1731217050162,0.002,79409.0,79395.0,0.18890498]
[1731217050368,0.30394239,79396.0,79388.0,0.13094221]
[1731217050613,0.005,79418.0,79394.0,0.18890498]
[1731217050907,0.18890498,79406.0,79401.0,0.005]
[1731217051118,0.18890498,79414.0,79402.0,0.12846049]
[1731217051334,0.18890498,79414.0,79403.0,0.1]
[1731217051542,0.18890498,79422.0,79403.0,0.1]
[1731217051543,0.18890498,79422.0,79410.0,0.005]
[1731217051746,0.18890498,79422.0,79412.0,0.1]
[1731217051911,0.18890498,79422.0,79413.0,0.12594221]
[1731217052251,0.18890498,79422.0,79418.0,0.01312141]
[1731217052440,0.002,79427.0,79414.0,0.1]
[1731217052648,0.30594239,79427.0,79414.0,0.1]
[1731217052787,0.30594239,79427.0,79415.0,0.01638028]
[1731217052985,0.30594239,79427.0,79418.0,0.18890498]
[1731217052986,0.30394239,79427.0,79418.0,0.18890498]
[1731217053216,0.30394239,79427.0,79419.0,0.11638028]
[1731217053447,0.30394239,79427.0,79422.0,0.1]
[1731217053656,0.0783,79439.0,79423.0,0.01638028]
[1731217053657,0.30394239,79438.0,79423.0,0.01638028]
[1731217053864,0.18890498,79435.0,79424.0,0.01638028]
[1731217054064,0.30394239,79438.0,79425.0,0.01638028]
[1731217054312,0.30394239,79438.0,79426.0,0.01889788]
[1731217054483,0.30394239,79427.0,79424.0,0.1]
[1731217054684,0.002,79434.0,79424.0,0.1]
[1731217054889,0.002,79435.0,79430.0,0.0130859]
[1731217055087,0.002,79435.0,79431.0,0.02944051]
[1731217055313,0.002,79435.0,79432.0,0.02944051]
[1731217055522,0.30394239,79437.0,79433.0,0.02944051]
[1731217055734,0.30394239,79437.0,79434.0,0.02944051]
[1731217055936,0.30394239,79437.0,79435.0,0.02944051]
[1731217056113,0.30394239,79437.0,79436.0,0.02944574]
[1731217056685,0.30394239,79437.0,79436.0,0.04253605]
[1731217056897,0.30394239,79437.0,79436.0,0.05070612]
[1731217057086,0.0783,79439.0,79436.0,0.03761581]
[1731217057299,0.0783,79439.0,79437.0,0.03761581]
[1731217057580,0.05316,79439.0,79438.0,0.03761581]
[1731217057754,0.05516,79439.0,79438.0,0.03761581]
[1731217057968,0.002,79435.0,79424.0,0.14279331]
[1731217058141,0.002,79435.0,79432.0,0.1]
[1731217058341,0.002,79435.0,79433.0,0.03757484]
[1731217058588,0.05316,79439.0,79434.0,0.03757484]
[1731217058765,0.05316,79439.0,79437.0,0.01308317]
[1731217058966,0.05316,79439.0,79438.0,0.05065801]
[1731217059178,0.05316,79439.0,79438.0,0.03757484]
[1731217059611,0.005,79442.0,79438.0,0.03757484]
[1731217059897,0.17874498,79453.0,79439.0,0.03757484]
[1731217060149,0.12594221,79452.0,79441.0,0.1]
[1731217060361,0.12594221,79452.0,79442.0,0.03757484]
[1731217060597,0.0794,79451.0,79443.0,0.03757484]
[1731217060745,0.12594221,79450.0,79444.0,0.03757484]
[1731217060961,0.12594221,79450.0,79446.0,0.1]
[1731217061113,0.12594221,79450.0,79447.0,0.03757484]
[1731217061326,0.12594221,79450.0,79446.0,0.1]
[1731217061535,0.12594221,79450.0,79447.0,0.0006825]
[1731217061767,0.12594221,79450.0,79446.0,0.1]
[1731217061980,0.0794,79451.0,79446.0,0.0105]
[1731217062188,0.0794,79451.0,79440.0,0.005]
[1731217062385,0.0794,79451.0,79442.0,0.1]
[1731217062799,0.0794,79451.0,79442.0,0.28890498]
[1731217063224,0.0794,79463.0,79445.0,0.005]
[1731217063429,0.31484719,79462.0,79451.0,0.005]
[1731217063641,0.23400498,79471.0,79457.0,0.005]
[1731217063848,0.18890498,79471.0,79468.0,0.08112]
[1731217064049,0.0794,79475.0,79469.0,0.008112]
[1731217064263,0.0451,79486.0,79469.0,0.008112]
[1731217064627,0.18890498,79479.0,79465.0,0.005]
[1731217064738,0.4298846,79485.0,79468.0,0.18890498]
[1731217064945,0.4298846,79485.0,79428.0,0.30394239]
[1731217064946,0.30394239,79475.0,79449.0,0.005]
[1731217065152,0.12594221,79474.0,79467.0,0.18890498]
[1731217065346,0.31484719,79474.0,79457.0,0.005]
[1731217065551,0.30394239,79466.0,79458.0,0.18890498]
[1731217065763,0.4298846,79466.0,79459.0,0.1]
[1731217066174,0.4298846,79466.0,79458.0,0.18890498]
[1731217066175,0.12594221,79465.0,79451.0,0.1]
[1731217066372,0.12594221,79465.0,79451.0,0.05]
[1731217066573,0.12594221,79465.0,79459.0,0.01280515]
[1731217067311,0.12594221,79465.0,79460.0,0.01280515]
[1731217067653,0.005,79482.0,79464.0,0.03793515]
[1731217067987,0.30394239,79477.0,79470.0,0.03793515]
[1731217068228,0.12594221,79476.0,79470.0,0.03793515]
[1731217068451,0.12594221,79476.0,79475.0,0.03793515]
[1731217068646,0.12594221,79476.0,79475.0,0.02513]
[1731217069269,0.12594221,79476.0,79473.0,0.01282421]
[1731217069270,0.12594221,79476.0,79469.0,0.02513]
[1731217069685,0.12594221,79476.0,79471.0,0.02513]
[1731217069983,0.12594221,79476.0,79473.0,0.02513]
[1731217070185,0.12594221,79476.0,79475.0,0.02513]
[1731217070424,0.12594221,79476.0,79475.0,0.04117558]
[1731217070595,0.13094221,79476.0,79475.0,0.04117558]
[1731217070792,0.12594221,79476.0,79475.0,0.04117558]
[1731217071543,0.12594221,79476.0,79475.0,0.05405267]
[1731217073546,0.12594221,79476.0,79475.0,0.06213024]
[1731217073863,0.06938135,79476.0,79475.0,0.06213024]
[1731217074802,0.04638135,79476.0,79475.0,0.06213024]
[1731217074968,0.04638135,79476.0,79475.0,0.02513]
[1731217075171,0.04638135,79476.0,79475.0,0.06240481]
[1731217077776,0.04638135,79476.0,79475.0,0.03726481]
[1731217077777,0.02124135,79476.0,79475.0,0.03726481]
[1731217078893,0.04594,79486.0,79475.0,0.03322922]
[1731217079097,0.12594221,79485.0,79477.0,0.02513]
[1731217079331,0.12594221,79485.0,79479.0,0.02513]
[1731217079533,0.12594221,79485.0,79481.0,0.02513]
[1731217079749,0.12594221,79485.0,79468.0,0.1]
[1731217079750,0.12594221,79485.0,79483.0,0.02513]
[1731217080049,0.12594221,79485.0,79468.0,0.1]
[1731217080050,0.12594221,79485.0,79484.0,0.03322922]
[1731217081251,0.12594221,79485.0,79484.0,0.03322974]
[1731217081667,0.00084,79486.0,79484.0,0.03322974]
[1731217081987,0.00084,79486.0,79485.0,0.03322974]
[1731217082327,0.1262,79498.0,79485.0,0.03238974]
[1731217082531,0.12594221,79497.0,79495.0,0.01296358]
[1731217082733,0.12594221,79497.0,79496.0,0.02513]
[1731217083113,0.13094221,79497.0,79496.0,0.02513]
[1731217083516,0.13594221,79497.0,79496.0,0.02513]
[1731217083766,0.26814221,79497.0,79487.0,0.01296358]
[1731217083991,0.0496,79479.0,79477.0,0.02513]
[1731217084202,0.12594221,79478.0,79477.0,0.02513]
[1731217084435,0.01,79467.0,79434.0,0.005]
[1731217084654,0.0866,79466.0,79438.0,0.005]
[1731217084864,0.0866,79466.0,79459.0,0.02513]
[1731217085272,0.01,79463.0,79460.0,0.02513]
[1731217085481,0.000712,79530.0,79499.0,0.03013]
[1731217085715,0.000712,79530.0,79529.0,0.04013]
[1731217086579,1.36371001,79534.0,79533.0,0.04013]
[1731217086831,1.36371001,79534.0,79533.0,0.02513]
[1731217087003,1.36371001,79534.0,79533.0,0.03013]
[1731217087747,1.36371001,79534.0,79533.0,0.04304973]
[1731217087967,1.36371001,79534.0,79533.0,0.03013]
[1731217088169,1.36371001,79534.0,79533.0,0.04305097]
[1731217089648,0.005,79528.0,79500.0,0.02513]
[1731217089871,0.005,79525.0,79523.0,0.02513]
[1731217090017,0.005,79524.0,79523.0,0.02513]
[1731217090690,0.015,79524.0,79523.0,0.02513]
[1731217090906,0.017,79524.0,79523.0,0.02513]
[1731217091109,0.14294221,79524.0,79523.0,0.02513]
[1731217091322,0.17369643,79524.0,79523.0,0.02513]
[1731217091533,0.17369643,79524.0,79523.0,0.01323516]
[1731217091747,0.015,79507.0,79506.0,0.21375349]
[1731217091963,0.14094221,79507.0,79506.0,0.21375349]
[1731217092322,0.11994221,79507.0,79506.0,0.02513]
[1731217092540,0.002,79489.0,79482.0,0.15095349]
[1731217093350,0.002,79487.0,79479.0,0.001678]
[1731217093736,0.002,79494.0,79479.0,0.001678]
[1731217093970,0.18862349,79482.0,79479.0,0.001678]
[1731217094102,0.002,79486.0,79479.0,0.001678]
[1731217094320,0.12594221,79485.0,79480.0,0.00787337]
[1731217094508,0.12594221,79485.0,79481.0,0.00787337]
[1731217094708,0.12594221,79485.0,79482.0,0.00787337]
[1731217094933,0.002,79480.0,79479.0,0.001678]
[1731217095152,0.12794221,79480.0,79479.0,0.001678]
[1731217095321,0.12794221,79480.0,79479.0,0.00955414]
[1731217095681,0.12794221,79480.0,79450.0,0.22872666]
[1731217095682,0.002,79473.0,79472.0,0.01260381]
[1731217095883,0.002,79464.0,79463.0,0.01260381]
[1731217096082,0.002,79464.0,79462.0,0.01260381]
[1731217096238,0.002,79462.0,79459.0,0.01260381]
[1731217096458,0.002,79453.0,79452.0,0.01260381]
[1731217096655,0.12594221,79461.0,79451.0,0.01260381]
[1731217096855,0.18862349,79460.0,79449.0,0.01260381]
[1731217097063,0.047,79467.0,79447.0,0.01260381]
[1731217097064,0.002,79448.0,79447.0,0.01260381]
[1731217097334,0.002,79447.0,79445.0,0.01260381]
[1731217097467,0.12594221,79459.0,79445.0,0.01260381]
[1731217097672,0.047,79467.0,79447.0,0.18862349]
[1731217097850,0.18862349,79463.0,79453.0,0.01260381]
[1731217098091,0.18862349,79463.0,79458.0,0.01260381]
[1731217098303,0.18862349,79471.0,79458.0,0.01260381]
[1731217098564,0.18862349,79471.0,79455.0,0.01260658]
[1731217098696,0.0816,79480.0,79460.0,0.1]
[1731217098901,0.0816,79480.0,79461.0,0.02911402]
[1731217098902,0.18862349,79475.0,79461.0,0.02911402]
[1731217099100,0.18862349,79475.0,79463.0,0.01260648]
[1731217099361,0.18862349,79475.0,79464.0,0.01260648]
[1731217099570,0.18862349,79475.0,79465.0,0.0252053]
[1731217099794,0.18862349,79475.0,79462.0,0.1]
[1731217099795,0.20754221,79480.0,79466.0,0.20122231]
[1731217100010,0.12594221,79479.0,79466.0,0.01259882]
[1731217100138,0.12594221,79479.0,79467.0,0.01259882]
[1731217100325,0.12594221,79479.0,79468.0,0.01259882]
[1731217100548,0.12594221,79479.0,79469.0,0.01259882]
[1731217100549,0.12588521,79479.0,79469.0,0.01259882]
[1731217100758,0.18862349,79477.0,79470.0,0.01259882]
[1731217100965,0.12594221,79476.0,79471.0,0.01259882]
[1731217101179,0.12594221,79476.0,79472.0,0.01259882]
[1731217101552,0.12594221,79476.0,79461.0,0.1]
[1731217101759,0.12594221,79476.0,79462.0,0.01258422]
[1731217101961,0.13594221,79476.0,79463.0,0.01258422]
[1731217102180,0.01,79472.0,79464.0,0.01258311]
[1731217102383,0.005,79469.0,79450.0,0.18862349]
[1731217102591,0.12594221,79468.0,79460.0,0.18862349]
[1731217102729,0.18862349,79467.0,79461.0,0.01258516]
[1731217102932,0.12594221,79466.0,79462.0,0.01258516]
[1731217103140,0.005,79465.0,79444.0,0.01258755]
[1731217103359,0.12594221,79464.0,79457.0,0.1]
[1731217103556,0.12594221,79464.0,79458.0,0.01258763]
[1731217103758,0.14144585,79464.0,79443.0,0.06258763]
[1731217103979,0.14144585,79464.0,79452.0,0.18862349]
[1731217104189,0.14144585,79464.0,79443.0,0.06258763]
[1731217104598,0.0766,79453.0,79444.0,0.18862349]
[1731217104934,0.12594221,79452.0,79444.0,0.18862349]
[1731217105343,0.12594221,79452.0,79436.0,0.18862349]
[1731217105477,0.10294221,79452.0,79436.0,0.18862349]
[1731217105745,0.10294221,79452.0,79448.0,0.00168]
[1731217105979,0.18862349,79451.0,79448.0,0.00168]
[1731217106200,0.12594221,79450.0,79448.0,0.00168]
[1731217106376,0.30394239,79449.0,79448.0,0.00168]
[1731217106577,0.12594221,79449.0,79448.0,0.00168]
[1731217106800,0.13094221,79449.0,79448.0,0.00168]
[1731217107181,0.4348846,79449.0,79448.0,0.00168]
[1731217107568,0.13094221,79449.0,79448.0,0.00168]
[1731217107968,0.12594221,79449.0,79448.0,0.00168]
[1731217108837,0.15080494,79449.0,79448.0,0.00168]
[1731217109020,0.12594221,79449.0,79448.0,0.00168]
[1731217110446,0.12594221,79449.0,79448.0,0.02681]
[1731217110659,0.12594221,79449.0,79448.0,0.03466887]
[1731217111883,0.12594221,79449.0,79448.0,0.00168]
[1731217112239,0.4298846,79449.0,79448.0,0.00168]
[1731217112464,0.4348846,79449.0,79448.0,0.00168]
[1731217113317,0.4298846,79449.0,79448.0,0.00168]
[1731217113549,0.4348846,79449.0,79448.0,0.00168]
[1731217114707,0.4448846,79449.0,79448.0,0.00168]
[1731217115757,0.005,79443.0,79442.0,0.02513]
[1731217115955,0.13094221,79443.0,79442.0,0.02513]
[1731217116188,0.13094221,79443.0,79438.0,0.02513]
[1731217116389,0.12594221,79442.0,79438.0,0.02513]
[1731217116753,0.03728883,79532.0,79480.0,0.04935278]
[1731217116956,1.25160528,79534.0,79460.0,0.75528701]
[1731217116957,1.20132528,79534.0,79533.0,0.005]
[1731217117180,1.17618528,79534.0,79533.0,0.015]
[1731217117380,1.15966955,79534.0,79533.0,0.03950665]
[1731217117587,1.15966955,79534.0,79533.0,0.03042329]
[1731217117804,1.15966955,79534.0,79533.0,0.03542329]
[1731217117960,1.15966955,79534.0,79533.0,0.02285511]
[1731217119030,1.15966955,79534.0,79533.0,0.02785511]
[1731217119261,1.15966955,79534.0,79533.0,0.015]
[1731217119457,1.15966955,79534.0,79533.0,0.02284755]
[1731217119673,1.15554295,79534.0,79533.0,0.24378976]
[1731217119895,1.15554295,79534.0,79533.0,0.11284755]
[1731217120537,1.15554295,79534.0,79533.0,0.00784755]
[1731217120960,1.15554295,79534.0,79533.0,0.01284755]
[1731217121175,1.15554295,79534.0,79533.0,0.00784755]
[1731217122031,1.13254295,79534.0,79533.0,0.00784755]
[1731217122884,1.13254295,79534.0,79529.0,0.005]
[1731217123061,1.13254295,79534.0,79530.0,0.00785024]
[1731217123268,1.13254295,79534.0,79531.0,0.00785024]
[1731217123464,0.005,79531.0,79506.0,0.01256047]
[1731217123734,0.005,79531.0,79510.0,0.1]
[1731217123850,0.18859977,79529.0,79511.0,0.12594221]
[1731217124051,0.18859977,79529.0,79512.0,0.1]
[1731217124251,1.13254295,79534.0,79507.0,0.03165666]
[1731217124252,0.18859977,79533.0,79516.0,0.002]
[1731217124458,0.18859977,79533.0,79518.0,0.1]
[1731217124459,0.18859977,79525.0,79518.0,0.1]
[1731217124671,0.18859977,79525.0,79520.0,0.1]
[1731217124878,0.18859977,79525.0,79521.0,0.12594221]
[1731217125119,0.18859977,79525.0,79522.0,0.1]
[1731217125320,0.18859977,79525.0,79523.0,0.12594221]
[1731217125656,0.19359977,79533.0,79524.0,0.1]
[1731217125794,0.18859977,79525.0,79524.0,0.1]
[1731217126000,0.19359977,79533.0,79524.0,0.1]
[1731217126817,0.18859977,79525.0,79505.0,0.005]
[1731217127021,0.18859977,79525.0,79500.0,0.002]
[1731217127022,0.005,79522.0,79506.0,0.12594221]
[1731217127216,0.18859977,79521.0,79506.0,0.12594221]
[1731217127511,0.16345977,79521.0,79506.0,0.12594221]
[1731217127755,0.16845977,79521.0,79507.0,0.01259422]
[1731217127955,0.16845977,79521.0,79508.0,0.12594221]
[1731217128610,0.16845977,79521.0,79509.0,0.1]
[1731217128800,0.16845977,79521.0,79490.0,0.01735215]
[1731217128801,0.005,79512.0,79490.0,0.18859977]
[1731217128961,0.005,79512.0,79491.0,0.14480219]
[1731217129306,0.18859977,79511.0,79491.0,0.14480219]
[1731217129473,0.005,79512.0,79491.0,0.14480219]
[1731217129474,0.0787,79520.0,79497.0,0.12594221]
[1731217129639,0.18859977,79512.0,79497.0,0.12594221]
[1731217129842,0.16345977,79521.0,79503.0,0.12594221]
[1731217130049,0.18859977,79513.0,79508.0,0.001678]
[1731217130250,0.16345977,79521.0,79511.0,0.12594221]
[1731217130461,0.16345977,79521.0,79512.0,0.102]
[1731217130665,0.16345977,79521.0,79512.0,0.1]
[1731217130890,0.16345977,79521.0,79514.0,0.1]
[1731217131105,0.16345977,79521.0,79516.0,0.1]
[1731217131300,0.18859977,79533.0,79517.0,0.12594221]
[1731217131506,0.18859977,79521.0,79518.0,0.1]
[1731217131718,0.18859977,79533.0,79519.0,0.12594221]
[1731217131933,1.13254295,79534.0,79520.0,0.1]
[1731217132064,0.18859977,79533.0,79522.0,0.1]
[1731217132288,0.18859977,79533.0,79524.0,0.1]
[1731217132519,1.13254295,79534.0,79526.0,0.06128]
[1731217132723,1.13254295,79534.0,79527.0,0.12594221]
[1731217133329,1.13254295,79534.0,79528.0,0.01255708]
[1731217133491,1.13254295,79534.0,79529.0,0.15947722]
[1731217133691,1.13254295,79534.0,79530.0,0.01255708]
[1731217133940,1.13254295,79534.0,79531.0,0.13849929]
[1731217134202,1.13254295,79534.0,79532.0,0.01255708]
[1731217134375,1.13254295,79534.0,79533.0,0.13849929]
[1731217134589,1.13254295,79534.0,79533.0,0.25644701]
[1731217134732,1.13254295,79534.0,79533.0,0.25444701]
[1731217135120,1.13254295,79534.0,79533.0,0.25644701]
[1731217135506,1.13254295,79534.0,79533.0,0.27654857]
[1731217135726,1.13254295,79534.0,79533.0,0.27462602]
[1731217135727,1.10954295,79534.0,79533.0,0.27462602]
[1731217135969,1.10954295,79534.0,79533.0,0.26229488]
[1731217136156,1.10954295,79534.0,79533.0,0.26429488]
[1731217136479,1.10954295,79534.0,79533.0,0.24388993]
[1731217136683,1.10954295,79534.0,79533.0,0.24188993]
[1731217136893,1.10954295,79534.0,79533.0,0.24634532]
[1731217137451,1.08440295,79534.0,79533.0,0.27147532]
[1731217137833,1.08440295,79534.0,79533.0,0.17147532]
[1731217138009,1.08940295,79534.0,79533.0,0.04553311]
[1731217139977,1.08940295,79534.0,79530.0,0.02513]
[1731217140171,1.08940295,79534.0,79512.0,0.1]
[1731217140172,1.06640295,79534.0,79533.0,0.02513]
[1731217140314,1.06640295,79534.0,79533.0,0.0455404]
[1731217140941,1.06140295,79534.0,79533.0,0.0455404]
[1731217141321,1.06140295,79534.0,79533.0,0.17148261]
[1731217141545,1.06140295,79534.0,79533.0,0.28863087]
[1731217142138,1.00489558,79534.0,79533.0,0.28863087]
[1731217142311,1.00489558,79534.0,79533.0,0.28862579]
[1731217143696,1.00489558,79534.0,79533.0,0.27147753]
[1731217145700,1.00489558,79534.0,79533.0,0.28717802]
[1731217146127,1.00989558,79534.0,79533.0,0.02825687]
[1731217146339,1.00989558,79534.0,79511.0,0.18859977]
[1731217146340,0.005,79516.0,79511.0,0.18859977]
[1731217146549,0.005,79512.0,79511.0,0.18859977]
[1731217146785,0.005,79516.0,79511.0,0.12594221]
[1731217146996,0.005,79516.0,79512.0,0.12845727]
[1731217147242,0.005,79527.0,79512.0,0.12845727]
[1731217147430,0.005,79528.0,79513.0,0.03814353]
[1731217147635,0.005,79528.0,79515.0,0.02513]
[1731217147849,0.005,79528.0,79517.0,0.02513]
[1731217148053,0.18859977,79533.0,79519.0,0.02513]
[1731217148263,0.18859977,79533.0,79518.0,0.12845691]
[1731217148264,0.18859977,79533.0,79521.0,0.02513]
[1731217148464,0.18859977,79533.0,79523.0,0.12513]
[1731217148689,0.18859977,79533.0,79525.0,0.12513]
[1731217148892,0.18859977,79533.0,79527.0,0.02513]
[1731217149096,0.18859977,79533.0,79529.0,0.12513]
[1731217149346,1.08809558,79534.0,79529.0,0.12513]
[1731217149347,1.08809558,79534.0,79531.0,0.02513]
[1731217149543,1.08809558,79534.0,79533.0,0.12513]
[1731217149800,1.08809558,79534.0,79533.0,0.23977199]
[1731217150010,1.08809558,79534.0,79533.0,0.24918884]
[1731217150382,0.97419558,79534.0,79533.0,0.24918884]
[1731217150738,0.95119558,79534.0,79533.0,0.24918884]
[1731217150969,0.95119558,79534.0,79533.0,0.19918884]
[1731217152108,0.95619558,79534.0,79533.0,0.02513]
[1731217153191,0.95619558,79534.0,79510.0,0.02513]
[1731217153359,0.95619558,79534.0,79516.0,0.02513]
[1731217153572,0.18859977,79533.0,79518.0,0.12513]
[1731217153763,0.18859977,79533.0,79520.0,0.12513]